bitfinex/quotes_SOLUSD_20241126
["timestamp","ask_amount","ask_price","bid_price","bid_amount"]
[1732634715135,10.0,229.5,229.49,28.40849246]
[1732634715308,5.0,229.54,229.51,20.0]
[1732634715631,5.0,229.54,229.53,24.05109246]
[1732634716229,5.0,229.54,229.53,52.18467646]
[1732634716529,5.0,229.54,229.53,24.05109246]
[1732634716942,5.0,229.54,229.53,47.82797646]
[1732634717225,5.0,229.54,229.53,52.18467646]
[1732634717429,5.0,229.55,229.53,52.18467646]
[1732634717632,5.0,229.55,229.54,28.258874]
[1732634717932,5.0,229.55,229.54,28.384364]
[1732634718130,5.0,229.55,229.53,24.05109246]
[1732634718131,10.0,229.55,229.53,24.05109246]
[1732634718439,5.0,229.54,229.53,47.82797646]
[1732634718815,5.0,229.53,229.45,24.05109246]
[1732634719012,10.0,229.42,229.41,24.05109246]
[1732634720534,10.0,229.42,229.39,4.3592]
[1732634720535,10.0,229.4,229.39,24.05109246]
[1732634720721,5.0,229.4,229.39,24.05109246]
[1732634721924,10.0,229.42,229.41,20.0]
[1732634722221,10.0,229.42,229.41,67.82797646]
[1732634722824,10.0,229.42,229.41,44.05109246]
[1732634723028,10.0,229.38,229.37,24.05109246]
[1732634723225,10.0,229.3,229.29,24.05109246]
[1732634723738,10.0,229.36,229.32,0.12549]
[1732634724039,5.0,229.33,229.31,4.3609]
[1732634724341,5.0,229.36,229.33,0.12549]
[1732634724526,5.0,229.37,229.36,0.25098]
[1732634724722,5.0,229.4,229.36,0.25098]
[1732634724942,5.0,229.4,229.39,24.30207246]
[1732634725143,10.0,229.43,229.42,44.027864]
[1732634725346,10.0,229.43,229.42,67.82797646]
[1732634725548,10.0,229.43,229.42,44.05109246]
[1732634726055,10.0,229.43,229.42,24.05109246]
[1732634726221,10.0,229.43,229.41,24.05109246]
[1732634726930,10.0,229.43,229.34,1.89165832]
[1732634727128,5.0,229.32,229.24,34.95669246]
[1732634727349,10.0,229.35,229.24,61.13009246]
[1732634727534,5.0,229.37,229.26,0.12549]
[1732634727854,5.0,229.35,229.3,0.12549]
[1732634728149,5.0,229.48,229.23,4.3624]
[1732634728150,10.0,229.3,229.23,4.3624]
[1732634728447,10.0,229.3,229.29,24.05109246]
[1732634728776,5.0,229.28,229.27,24.05109246]
[1732634728947,5.0,229.26,229.24,24.17658246]
[1732634729451,22.6741,229.38,229.24,48.22767492]
[1732634729452,5.0,229.29,229.24,48.22767492]
[1732634729630,5.0,229.29,229.28,0.12549]
[1732634729823,5.0,229.34,229.32,23.776884]
[1732634730327,5.0,229.37,229.36,44.027864]
[1732634730523,5.0,229.42,229.4,20.0]
[1732634730727,5.0,229.45,229.43,43.776884]
[1732634730728,5.0,229.44,229.43,43.776884]
[1732634731022,5.0,229.44,229.43,67.95346646]
[1732634731227,5.0,229.44,229.43,47.82797646]
[1732634731635,5.0,229.44,229.43,24.05109246]
[1732634731843,5.0,229.4,229.37,28.41059246]
[1732634732028,5.0,229.4,229.39,24.05109246]
[1732634732228,10.0,229.38,229.37,24.05109246]
[1732634732426,5.0,229.32,229.31,24.05109246]
[1732634732948,5.0,229.32,229.14,54.48713946]
[1732634733152,5.0,229.26,229.22,10.9062]
[1732634733467,5.0,229.26,229.25,24.17658246]
[1732634733749,5.0,229.29,229.25,24.05109246]
[1732634734046,16.3162,229.37,229.24,24.05109246]
[1732634734047,5.0,229.31,229.29,0.12549]
[1732634734227,10.0,229.31,229.3,20.12549]
[1732634734438,5.0,229.31,229.3,44.17658246]
[1732634734626,5.0,229.35,229.31,0.12549]
[1732634734933,5.0,229.37,229.34,48.07895646]
[1732634735145,5.0,229.39,229.38,44.027864]
[1732634735349,5.0,229.4,229.39,24.027864]
[1732634735531,5.0,229.41,229.39,24.027864]
[1732634735532,5.0,229.41,229.39,23.776884]
[1732634735734,5.0,229.4,229.39,23.902374]
[1732634735954,5.0,229.41,229.4,0.25098]
[1732634736286,5.0,229.44,229.4,0.25098]
[1732634736287,5.0,229.46,229.44,0.12549]
[1732634736556,5.0,229.47,229.46,23.776884]
[1732634737041,5.0,229.48,229.43,20.0]
[1732634737042,5.0,229.45,229.44,23.776884]
[1732634737236,10.0,229.45,229.44,23.776884]
[1732634737440,5.0,229.45,229.44,24.027864]
[1732634737834,5.0,229.45,229.44,28.386264]
[1732634738029,5.0,229.47,229.44,28.386264]
[1732634738232,5.0,229.5,229.48,24.027864]
[1732634738461,5.0,229.5,229.49,48.07895646]
[1732634738828,5.0,229.55,229.53,24.027864]
[1732634739047,5.0,229.55,229.54,48.07895646]
[1732634739435,5.0,229.58,229.57,20.12549]
[1732634739642,5.0,229.58,229.57,67.82797646]
[1732634739860,5.0,229.58,229.57,67.95346646]
[1732634740052,5.0,229.59,229.58,24.027864]
[1732634740252,5.0,229.6,229.58,24.027864]
[1732634740439,5.0,229.62,229.61,20.0]
[1732634740646,5.0,229.62,229.61,67.82797646]
[1732634740843,5.0,229.62,229.61,67.95346646]
[1732634741043,10.0,229.62,229.61,67.82797646]
[1732634741636,10.0,229.62,229.6,20.0]
[1732634742156,10.0,229.6,229.59,23.776884]
[1732634742756,10.0,229.6,229.59,47.82797646]
[1732634742943,5.0,229.63,229.61,0.12549]
[1732634743141,10.0,229.65,229.63,23.776884]
[1732634743346,0.5221229,229.66,229.64,47.82797646]
[1732634743543,0.5221229,229.66,229.65,23.776884]
[1732634744061,0.5221229,229.66,229.65,28.382264]
[1732634744259,0.5221229,229.66,229.65,52.43335646]
[1732634744761,0.5221229,229.66,229.65,28.382264]
[1732634745156,0.5221229,229.66,229.65,52.43335646]
[1732634745657,5.0,229.74,229.72,20.0]
[1732634745658,10.0,229.74,229.72,20.0]
[1732634745858,10.0,229.74,229.73,24.05109246]
[1732634746037,10.0,229.74,229.72,20.0]
[1732634746235,10.0,229.74,229.73,24.05109246]
[1732634746745,16.3162,229.83,229.76,20.0]
[1732634746746,10.0,229.79,229.76,20.0]
[1732634746951,10.0,229.79,229.78,24.05109246]
[1732634747145,5.0,229.79,229.78,24.05109246]
[1732634747362,10.0,229.79,229.78,24.05109246]
[1732634747538,5.0,229.79,229.78,24.05109246]
[1732634747745,10.0,229.79,229.78,47.82797646]
[1732634747971,10.0,229.79,229.76,20.0]
[1732634748162,10.0,229.77,229.76,43.776884]
[1732634749161,10.0,229.77,229.76,20.0]
[1732634749469,10.0,229.68,229.67,24.05109246]
[1732634749645,10.0,229.66,229.63,24.05109246]
[1732634749848,10.0,229.64,229.63,24.05109246]
[1732634750055,10.0,229.64,229.63,24.17658246]
[1732634750253,10.0,229.64,229.63,28.40589246]
[1732634750443,10.0,229.64,229.63,24.05109246]
[1732634750640,10.0,229.64,229.63,24.17658246]
[1732634750864,5.0,229.66,229.63,24.05109246]
[1732634751064,5.0,229.69,229.66,0.12549]
[1732634751370,5.0,229.72,229.69,0.12549]
[1732634751556,5.0,229.7,229.69,0.12549]
[1732634751943,5.0,229.7,229.69,48.07895646]
[1732634752140,5.0,229.7,229.69,47.82797646]
[1732634753170,16.3162,229.76,229.69,47.82797646]
[1732634753171,5.0,229.72,229.7,28.381364]
[1732634753471,5.0,229.72,229.71,48.07895646]
[1732634753863,5.0,229.74,229.73,0.25098]
[1732634754061,5.0,229.75,229.74,44.027864]
[1732634754365,5.0,229.76,229.74,72.43165646]
[1732634754567,5.0,229.75,229.74,48.380564]
[1732634754743,5.0,229.78,229.74,48.380564]
[1732634755163,5.0,229.78,229.77,24.027864]
[1732634755371,10.0,229.78,229.77,48.07895646]
[1732634755554,5.0,229.75,229.72,20.0]
[1732634755758,5.0,229.73,229.72,24.353]
[1732634755955,5.0,229.73,229.69,12.75175457]
[1732634755956,5.0,229.71,229.7,4.3533]
[1732634756249,10.0,229.68,229.63,1.94390032]
[1732634756556,5.0,229.68,229.67,24.05109246]
[1732634756759,5.0,229.69,229.68,0.12549]
[1732634757556,5.0,229.68,229.67,47.95346646]
[1732634757755,5.0,229.69,229.67,48.07895646]
[1732634757956,5.0,229.69,229.68,24.027864]
[1732634758362,5.0,229.69,229.68,28.381664]
[1732634758951,10.0,229.64,229.63,24.05109246]
[1732634759252,5.0,229.53,229.46,30.13079246]
[1732634759663,5.0,229.53,229.46,32.07524191]
[1732634759968,5.0,229.53,229.47,13.19549]
[1732634760168,5.0,229.57,229.47,50.23719]
[1732634760471,5.0,229.71,229.46,32.07524191]
[1732634760472,5.0,229.59,229.5,13.07]
[1732634760768,5.0,229.62,229.61,20.0]
[1732634760973,10.0,229.67,229.62,0.12549]
[1732634761157,10.0,229.67,229.66,24.17658246]
[1732634761566,10.0,229.67,229.66,48.07895646]
[1732634761873,10.0,229.71,229.7,44.027864]
[1732634762074,10.0,229.71,229.7,68.07895646]
[1732634762375,10.0,229.71,229.69,23.776884]
[1732634762678,5.0,229.67,229.66,39.03427958]
[1732634762868,5.0,229.67,229.66,39.28525958]
[1732634763572,5.0,229.67,229.66,39.15976958]
[1732634763755,5.0,229.67,229.66,63.06214358]
[1732634763950,5.0,229.67,229.66,62.81116358]
[1732634764146,10.0,229.64,229.63,39.03427958]
[1732634764577,10.0,229.64,229.56,10.8902]
[1732634764578,5.0,229.62,229.61,39.03427958]
[1732634764761,10.8806,229.77,229.46,44.03427958]
[1732634764762,10.0,229.58,229.57,39.03427958]
[1732634765153,5.0,229.58,229.57,78.06855916]
[1732634765360,5.0,229.62,229.57,78.06855916]
[1732634765577,16.1344,229.66,229.55,15.2471]
[1732634765578,5.0,229.58,229.55,4.3563]
[1732634765759,10.0,229.56,229.55,4.3563]
[1732634766076,5.0,229.56,229.55,4.48179]
[1732634766388,16.1344,229.66,229.58,0.12549]
[1732634766389,5.0,229.62,229.58,0.12549]
[1732634766673,5.0,229.65,229.58,0.12549]
[1732634766977,10.0,229.66,229.65,23.902374]
[1732634767176,10.0,229.68,229.67,20.12549]
[1732634767359,10.0,229.68,229.67,83.06214358]
[1732634767560,10.0,229.68,229.67,122.09642316]
[1732634767561,5.0,229.68,229.67,122.09642316]
[1732634767761,5.0,229.69,229.67,121.97093316]
[1732634767964,5.0,229.69,229.68,24.027864]
[1732634768173,5.0,229.7,229.69,0.12549]
[1732634768574,5.0,229.7,229.69,28.381464]
[1732634769866,5.0,229.76,229.74,0.12549]
[1732634770077,5.0,229.76,229.75,39.15976958]
[1732634770255,5.0,229.78,229.77,20.12549]
[1732634770462,5.0,229.78,229.77,59.28525958]
[1732634770663,5.0,229.79,229.78,0.12549]
[1732634770861,5.0,229.79,229.78,39.15976958]
[1732634771289,5.0,229.82,229.81,20.25098]
[1732634771575,5.0,229.82,229.81,59.03427958]
[1732634771785,5.0,229.82,229.81,59.28525958]
[1732634771959,5.0,229.86,229.85,0.12549]
[1732634772162,5.5221229,229.89,229.88,20.25098]
[1732634772479,5.5221229,229.89,229.88,87.41214358]
[1732634772688,5.5221229,229.89,229.88,43.776884]
[1732634773061,5.5221229,229.89,229.85,0.25098]
[1732634773274,5.0,229.86,229.85,24.027864]
[1732634773980,5.0,229.88,229.87,44.027864]
[1732634774479,5.0,229.88,229.87,83.06214358]
[1732634776094,0.5221229,229.89,229.88,28.377864]
[1732634776288,0.5221229,229.89,229.88,23.776884]
[1732634776672,5.0,229.84,229.83,39.03427958]
[1732634776977,5.0,229.76,229.75,39.03427958]
[1732634777465,5.0,229.76,229.75,39.15976958]
[1732634778283,5.0,229.76,229.75,63.06214358]
[1732634778676,5.0,229.78,229.77,0.25098]
[1732634778989,5.0,229.78,229.77,83.06214358]
[1732634779170,5.0,229.78,229.77,20.0]
[1732634779487,5.0,229.78,229.77,59.15976958]
[1732634779667,5.0,229.8,229.78,0.12549]
[1732634779980,5.0,229.8,229.79,39.15976958]
[1732634780368,5.0,229.8,229.79,67.41384358]
[1732634780665,5.0,229.8,229.78,23.776884]
[1732634781069,5.0,229.8,229.79,62.93665358]
[1732634781369,5.0,229.8,229.79,63.06214358]
[1732634781912,5.0,229.8,229.79,23.776884]
[1732634782184,5.0,229.8,229.78,23.776884]
[1732634782579,5.0,229.8,229.79,63.06214358]
[1732634783690,5.0,229.83,229.82,44.027864]
[1732634783890,5.0,229.83,229.82,83.06214358]
[1732634784273,5.0,229.83,229.82,68.01918386]
[1732634784587,5.0,229.83,229.78,23.99131986]
[1732634784789,5.0,229.79,229.78,23.99131986]
[1732634786088,0.5221229,229.89,229.66,10.8853]
[1732634786089,5.0,229.69,229.66,10.8853]
[1732634786298,5.0,229.69,229.68,23.99131986]
[1732634786467,5.0,229.69,229.68,28.34511986]
[1732634786790,5.0,229.69,229.68,52.33643972]
[1732634786973,5.0,229.71,229.69,0.12549]
[1732634787170,5.0,229.71,229.7,24.11680986]
[1732634787368,5.0,229.71,229.7,23.99131986]
[1732634788477,5.0,229.71,229.7,28.34481986]
[1732634789695,5.0,229.71,229.7,52.12170386]
[1732634789986,5.0,229.71,229.7,52.37268386]
[1732634790186,5.0,229.71,229.7,52.12170386]
[1732634790491,5.0,229.74,229.73,20.12549]
[1732634790696,5.0,229.74,229.73,44.027864]
[1732634790997,5.0,229.74,229.73,68.01918386]
[1732634791366,5.0,229.74,229.73,67.76820386]
[1732634792470,5.0,229.74,229.73,72.12110386]
[1732634792964,5.0,229.72,229.71,47.76820386]
[1732634793373,5.0,229.72,229.71,23.99131986]
[1732634793689,23.99131986,229.79,229.65,1.91303991]
[1732634793690,5.0,229.66,229.65,23.99131986]
[1732634793891,5.0,229.64,229.63,28.34611986]
[1732634794096,5.0,229.64,229.63,23.99131986]
[1732634795888,5.0,229.64,229.63,28.34611986]
[1732634796091,5.0,229.64,229.63,28.47160986]
[1732634796268,5.0,229.64,229.63,28.34611986]
[1732634796890,5.0,229.64,229.63,52.12300386]
[1732634797889,5.0,229.64,229.63,23.99131986]
[1732634799378,5.0,229.64,229.63,28.34611986]
[1732634799698,5.0,229.64,229.63,52.12300386]
[1732634800576,5.0,229.64,229.63,23.99131986]
[1732634800998,5.0,229.62,229.61,23.99131986]
[1732634802891,15.2997,229.68,229.65,20.0]
[1732634803096,15.2997,229.68,229.67,23.99131986]
[1732634803589,15.2997,229.68,229.67,47.98263972]
[1732634803842,15.2997,229.68,229.67,23.99131986]
[1732634804401,15.2997,229.68,229.67,47.98263972]
[1732634804598,6.3422,229.73,229.7,20.0]
[1732634804787,6.3422,229.73,229.69,23.99131986]
[1732634805096,6.3422,229.73,229.71,23.99131986]
[1732634805485,15.2997,229.74,229.71,23.99131986]
[1732634805995,15.2997,229.74,229.73,23.99131986]
[1732634806499,6.3422,229.79,229.77,20.0]
[1732634806800,6.3422,229.79,229.78,23.99131986]
[1732634807203,6.3422,229.79,229.77,20.0]
[1732634807508,6.3422,229.79,229.78,23.99131986]
[1732634807708,15.2888,229.8,229.78,23.99131986]
[1732634808085,15.2888,229.8,229.79,23.776884]
[1732634808412,6.2643,229.84,229.79,23.776884]
[1732634808719,28.49875346,229.86,229.83,23.99131986]
[1732634808720,15.2888,229.86,229.83,23.99131986]
[1732634809008,15.2888,229.86,229.85,23.99131986]
[1732634809516,0.5221229,229.89,229.85,23.99131986]
[1732634810091,14.8720229,229.89,229.82,20.0]
[1732634810619,5.0,229.87,229.79,23.776884]
[1732634810909,5.0,229.87,229.67,28.4051]
[1732634810910,28.34211986,229.84,229.77,23.99131986]
[1732634811090,23.99131986,229.81,229.74,4.3525]
[1732634812083,23.99131986,229.81,229.78,20.0]
[1732634812283,23.99131986,229.81,229.77,20.0]
[1732634812909,23.99131986,229.85,229.78,23.776884]
[1732634813212,23.99131986,229.81,229.77,20.0]
[1732634813412,23.99131986,229.78,229.68,28.34511986]
[1732634813587,23.99131986,229.76,229.68,28.34511986]
[1732634814723,5.0,229.79,229.73,20.0]
[1732634814724,23.99131986,229.78,229.73,20.0]
[1732634815007,23.99131986,229.78,229.68,4.3538]
[1732634815008,23.99131986,229.74,229.68,4.3538]
[1732634816295,23.99131986,229.74,229.67,4.354]
[1732634816494,23.99131986,229.74,229.69,20.0]
[1732634816903,23.99131986,229.7,229.67,20.0]
[1732634817101,23.99131986,229.72,229.64,23.99131986]
[1732634817395,23.99131986,229.74,229.66,23.99131986]
[1732634817907,23.99131986,229.72,229.64,24.11680986]
[1732634818315,23.99131986,229.72,229.68,20.0]
[1732634819519,23.99131986,229.7,229.68,20.0]
[1732634819812,23.99131986,229.7,229.6,23.99131986]
[1732634819998,23.99131986,229.67,229.6,23.99131986]
[1732634820514,23.99131986,229.69,229.62,23.99131986]
[1732634820891,39.75751986,229.67,229.61,20.0]
[1732634821092,23.99131986,229.65,229.61,20.0]
[1732634821292,39.75751986,229.67,229.61,20.0]
[1732634821500,15.7662,229.67,229.65,20.0]
[1732634822804,15.7662,229.72,229.67,20.0]
[1732634823024,15.7662,229.72,229.68,47.76820386]
[1732634823525,30.25561986,229.77,229.71,20.0]
[1732634823699,6.2643,229.77,229.73,23.99131986]
[1732634823898,30.25561986,229.77,229.69,23.99131986]
[1732634824211,34.60771986,229.77,229.7,23.776884]
[1732634824408,5.0,229.76,229.66,4.3542]
[1732634824721,23.99131986,229.68,229.6,4.3552]
[1732634824917,23.99131986,229.65,229.6,4.3552]
[1732634825127,23.99131986,229.67,229.6,4.3552]
[1732634825298,23.99131986,229.69,229.61,23.99131986]
[1732634825493,23.99131986,229.73,229.65,23.99131986]
[1732634825817,16.2643,229.77,229.71,23.99131986]
[1732634826019,11.2643,229.77,229.71,23.99131986]
[1732634826398,6.2643,229.77,229.71,23.99131986]
[1732634826696,6.2643,229.77,229.73,23.99131986]
[1732634826891,23.99131986,229.82,229.75,23.99131986]
[1732634827109,5.0,229.82,229.75,23.99131986]
[1732634827412,5.0,229.82,229.77,23.99131986]
[1732634827611,23.99131986,229.81,229.76,20.0]
[1732634827938,23.99131986,229.79,229.76,20.0]
[1732634828096,23.99131986,229.77,229.72,20.0]
[1732634828292,5.0,229.78,229.72,20.0]
[1732634828913,23.99131986,229.81,229.73,23.99131986]
[1732634829098,15.7662,229.85,229.72,24.3529]
[1732634829099,5.0,229.82,229.75,23.99131986]
[1732634829307,44.75751986,229.85,229.77,23.99131986]
[1732634829501,23.99131986,229.83,229.75,23.99131986]
[1732634829817,39.75751986,229.85,229.77,23.99131986]
[1732634830002,39.75751986,229.85,229.78,23.776884]
[1732634830202,15.7662,229.85,229.8,23.776884]
[1732634830425,23.99131986,229.87,229.8,23.776884]
[1732634830625,11.2453229,229.89,229.8,23.776884]
[1732634830626,30.88674276,229.89,229.82,23.776884]
[1732634830922,23.99131986,229.87,229.83,20.0]
[1732634831127,23.99131986,229.85,229.79,23.776884]
[1732634831299,23.99131986,229.85,229.77,23.99131986]
[1732634831505,30.88674276,229.89,229.81,47.76820386]
[1732634831701,6.8954229,229.89,229.84,23.776884]
[1732634831915,0.5221229,229.89,229.86,23.776884]
[1732634832103,0.5221229,229.89,229.88,23.776884]
[1732634833717,0.5221229,229.89,229.81,10.8782]
[1732634833718,0.5221229,229.89,229.85,23.99131986]
[1732634833937,24.51344276,229.89,229.81,23.99131986]
[1732634834102,23.99131986,229.87,229.84,20.0]
[1732634834403,23.99131986,229.85,229.78,4.3518]
[1732634834603,24.51344276,229.89,229.81,23.99131986]
[1732634834820,0.5221229,229.89,229.84,23.99131986]
[1732634835017,0.5221229,229.89,229.86,23.99131986]
[1732634835424,0.5221229,229.89,229.88,48.01918386]
[1732634835606,0.5221229,229.89,229.88,47.89369386]
[1732634835802,0.5221229,229.89,229.88,47.76820386]
[1732634836130,0.5221229,229.89,229.88,48.01918386]
[1732634836626,0.5221229,229.89,229.88,52.36918386]
[1732634839503,0.5221229,229.89,229.88,28.34131986]
[1732634839913,0.5221229,229.89,229.84,1.93204767]
[1732634839914,0.5221229,229.89,229.86,28.34161986]
[1732634840129,24.51344276,229.89,229.82,23.99131986]
[1732634840341,24.51344276,229.89,229.65,34.8413]
[1732634840342,24.51344276,229.89,229.8,28.34291986]
[1732634840627,23.99131986,229.87,229.8,4.3516]
[1732634841028,23.99131986,229.87,229.8,28.34291986]
[1732634841228,24.51344276,229.89,229.81,0.12549]
[1732634841410,0.5221229,229.89,229.85,20.0]
[1732634841832,0.5221229,229.89,229.84,23.99131986]
[1732634842124,0.5221229,229.89,229.88,23.776884]
[1732634842330,0.5221229,229.89,229.86,28.127284]
[1732634842827,0.5221229,229.89,229.88,47.76820386]
[1732634843039,0.5221229,229.89,229.88,48.01918386]
[1732634844416,0.5221229,229.89,229.88,52.36918386]
[1732634844614,0.5221229,229.89,229.88,52.11820386]
[1732634844931,0.5221229,229.89,229.88,52.36918386]
[1732634845137,0.5221229,229.89,229.88,28.126884]
[1732634845348,0.5221229,229.89,229.87,28.126984]
[1732634845531,0.5221229,229.89,229.87,20.0]
[1732634845921,24.51344276,229.89,229.8,28.34271986]
[1732634846223,24.51344276,229.89,229.74,10.8815]
[1732634846224,23.99131986,229.83,229.76,23.99131986]
[1732634846543,23.99131986,229.88,229.81,23.99131986]
[1732634846723,23.99131986,229.86,229.79,23.99131986]
[1732634846917,23.99131986,229.82,229.75,28.34381986]
[1732634847142,23.99131986,229.85,229.77,23.99131986]
[1732634847317,23.99131986,229.84,229.77,23.99131986]
[1732634847518,23.99131986,229.84,229.76,24.11680986]
[1732634847828,23.99131986,229.78,229.7,23.99131986]
[1732634848551,23.99131986,229.76,229.69,4.3535]
[1732634848723,23.99131986,229.74,229.66,23.99131986]
[1732634849322,23.99131986,229.72,229.64,23.99131986]
[1732634849643,23.99131986,229.75,229.68,23.99131986]
[1732634849836,23.99131986,229.73,229.66,23.99131986]
[1732634850016,23.99131986,229.74,229.67,23.99131986]
[1732634850219,23.99131986,229.72,229.65,23.99131986]
[1732634850422,23.99131986,229.7,229.63,28.34611986]
[1732634850634,23.99131986,229.72,229.67,20.0]
[1732634851236,23.99131986,229.72,229.68,20.0]
[1732634851542,23.99131986,229.71,229.64,23.99131986]
[1732634851749,23.99131986,229.71,229.63,23.99131986]
[1732634852346,23.99131986,229.72,229.64,23.99131986]
[1732634852536,23.99131986,229.72,229.65,23.99131986]
[1732634852745,28.34421986,229.73,229.68,20.0]
[1732634853048,46.20721986,229.76,229.69,23.99131986]
[1732634853224,22.2159,229.76,229.69,23.99131986]
[1732634853425,23.99131986,229.75,229.65,24.3544]
[1732634853742,22.2159,229.76,229.71,20.0]
[1732634853743,46.20721986,229.76,229.71,20.0]
[1732634853943,46.20721986,229.76,229.7,23.776884]
[1732634854652,22.2159,229.76,229.7,23.776884]
[1732634854836,23.99131986,229.77,229.7,52.12160386]
[1732634855042,23.99131986,229.84,229.76,23.99131986]
[1732634855228,23.99131986,229.83,229.75,23.99131986]
[1732634855424,23.99131986,229.81,229.75,23.99131986]
[1732634855629,23.99131986,229.82,229.77,20.0]
[1732634855829,23.99131986,229.83,229.77,20.0]
[1732634856386,23.99131986,229.85,229.77,23.99131986]
[1732634856737,40.51381986,229.86,229.79,23.99131986]
[1732634856937,16.5225,229.86,229.8,23.99131986]
[1732634857549,0.5221229,229.89,229.75,0.12549]
[1732634857550,24.51344276,229.89,229.82,23.99131986]
[1732634857726,23.99131986,229.87,229.75,23.902374]
[1732634857928,23.99131986,229.85,229.78,23.99131986]
[1732634858135,23.99131986,229.87,229.79,23.99131986]
[1732634858550,23.99131986,229.87,229.8,23.99131986]
[1732634858951,0.5221229,229.89,229.83,23.99131986]
[1732634859237,23.99131986,229.87,229.8,43.99131986]
[1732634859450,23.99131986,229.86,229.82,20.0]
[1732634859755,23.99131986,229.87,229.8,43.99131986]
[1732634859964,23.99131986,229.87,229.8,20.0]
[1732634860152,23.99131986,229.85,229.8,20.0]
[1732634860461,23.99131986,229.87,229.82,20.0]
[1732634860863,24.51344276,229.89,229.82,24.3511]
[1732634861061,24.51344276,229.89,229.82,48.34241986]
[1732634861238,23.99131986,229.88,229.82,20.0]
[1732634862158,23.99131986,229.88,229.81,23.776884]
[1732634862571,0.5221229,229.89,229.85,67.76820386]
[1732634862738,0.5221229,229.89,229.85,20.0]
[1732634862935,0.5221229,229.89,229.85,24.3506]
[1732634863160,0.5221229,229.89,229.88,47.76820386]
[1732634863370,0.5221229,229.89,229.88,47.89369386]
[1732634863542,0.5221229,229.89,229.88,48.01918386]
[1732634863851,0.5221229,229.89,229.88,47.89369386]
[1732634864050,0.5221229,229.89,229.88,48.01918386]
[1732634864738,0.5221229,229.89,229.88,72.01050372]
[1732634864935,0.5221229,229.89,229.88,52.36918386]
[1732634865471,0.5221229,229.89,229.88,76.36050372]
[1732634865638,16.5225,230.01,229.99,23.99131986]
[1732634866147,16.5225,230.01,229.97,23.99131986]
[1732634866349,16.5225,230.01,229.98,20.0]
[1732634866553,16.5225,230.01,229.97,23.776884]
[1732634867266,23.99131986,230.0,229.95,20.0]
[1732634867471,16.5225,230.01,229.93,23.776884]
[1732634867472,40.51381986,230.01,229.94,23.99131986]
[1732634867644,16.5225,230.01,229.97,23.99131986]
[1732634868063,16.5225,230.01,229.97,23.776884]
[1732634869049,16.5225,230.01,229.97,47.76820386]
[1732634869372,23.99131986,230.0,229.91,20.0]
[1732634869546,23.99131986,229.99,229.95,20.0]
[1732634869755,23.99131986,229.97,229.95,20.0]
[1732634870156,23.99131986,229.97,229.93,20.0]
[1732634870477,16.5225,230.01,229.94,20.0]
[1732634870478,23.99131986,229.98,229.94,20.0]
[1732634870669,23.99131986,229.99,229.94,20.0]
[1732634871047,23.99131986,230.0,229.94,20.0]
[1732634871248,16.5225,230.01,229.95,20.0]
[1732634871685,16.5225,230.01,229.99,23.99131986]
[1732634871852,16.5225,230.01,229.98,23.776884]
[1732634872174,13.20015628,230.05,229.98,47.76820386]
[1732634872467,13.20015628,230.05,229.98,23.776884]
[1732634872468,23.99131986,230.04,229.98,23.776884]
[1732634872675,37.19147614,230.05,229.98,23.776884]
[1732634872978,13.20015628,230.05,230.02,23.99131986]
[1732634873184,13.20015628,230.05,230.04,20.0]
[1732634873876,13.20015628,230.05,230.01,20.0]
[1732634874255,13.20015628,230.05,230.01,43.99131986]
[1732634874454,13.20015628,230.05,230.04,20.0]
[1732634874652,13.20015628,230.05,230.03,20.0]
[1732634874847,23.99131986,230.05,229.98,28.33951986]
[1732634875066,40.51381986,230.07,230.01,20.0]